fUSD/lending_fUSD_20250514
["ID","MTS","AMOUNT","RATE_DAILY","PERIOD"]
[361018365,1747206643239,-856.07,0.00010958,2]
[361018366,1747206643250,-434.11075935,0.00010958,2]
[361018367,1747206643264,-408.69445769,0.00010958,2]
[361018368,1747206643275,-400.0,0.00010958,2]
[361018369,1747206643284,-400.0,0.00010958,2]
[361018370,1747206643294,-400.0,0.00010958,2]
[361018371,1747206643305,-400.0,0.00010958,2]
[361018372,1747206643314,-400.0,0.00010958,2]
[361018373,1747206643324,-400.0,0.00010958,2]
[361018374,1747206643333,-400.0,0.00010958,2]
[361018375,1747206643343,-745.81,0.00010958,2]
[361018376,1747206643353,-400.0,0.00010958,2]
[361018377,1747206643362,-400.0,0.00010958,2]
[361018378,1747206643371,-400.0,0.00010958,2]
[361018379,1747206643381,-299.29763787,0.00010958,2]
[361018380,1747206643391,-760.93,0.00010958,2]
[361018381,1747206643400,-493.42,0.00010958,2]
[361018382,1747206643410,-841.04,0.00010958,2]
[361018383,1747206643419,-400.0,0.00010958,2]
[361018384,1747206643429,-400.0,0.00010958,2]
[361018385,1747206643439,-476.08,0.00010958,2]
[361018386,1747206643449,-400.0,0.00010958,2]
[361018387,1747206643459,-400.0,0.00010958,2]
[361018388,1747206643468,-400.0,0.00010958,2]
[361018389,1747206643477,-400.0,0.00010958,2]
[361018390,1747206643487,-519.0,0.00010958,2]
[361018391,1747206643497,-400.0,0.00010958,2]
[361018392,1747206643506,-400.0,0.00010958,2]
[361018393,1747206643515,-411.83298849,0.00010958,2]
[361018394,1747206643524,-401.75661844,0.00010958,2]
[361018395,1747206643786,-400.0,0.00010958,2]
[361018396,1747206643809,-400.0,0.00010958,2]
[361018397,1747206643820,-1414.66,0.00010958,2]
[361018398,1747206643830,-300.0,0.00010958,2]
[361018399,1747206643841,-462.98,0.00010958,2]
[361018400,1747206643850,-400.0,0.00010958,2]
[361018401,1747206643860,-400.0,0.00010958,2]
[361018402,1747206643869,-454.71653697,0.00010958,2]
[361018403,1747206643879,-505.82,0.00010958,2]
[361018404,1747206643889,-400.0,0.00010958,2]
[361018405,1747206643899,-1176.61,0.00010958,2]
[361018406,1747206643909,-427.64,0.00010958,2]
[361018407,1747206643919,-302.54380114,0.00010958,2]
[361018408,1747206643928,-400.0,0.00010958,2]
[361018409,1747206643938,-400.0,0.00010958,2]
[361018410,1747206643951,-400.0,0.00010958,2]
[361018411,1747206643962,-400.0,0.00010958,2]
[361018412,1747206643971,-375.85030525,0.00010958,2]
[361018413,1747206643982,-400.0,0.00010958,2]
[361018414,1747206643992,-1227.25,0.00010958,2]
[361018415,1747206644002,-400.0,0.00010958,2]
[361018416,1747206644012,-511.43,0.00010958,2]
[361018417,1747206644022,-400.0,0.00010958,2]
[361018418,1747206644031,-400.0,0.00010958,2]
[361018419,1747206644041,-400.0,0.00010958,2]
[361018420,1747206644051,-400.0,0.00010958,2]
[361018421,1747206644061,-495.63,0.00010958,2]
[361018422,1747206644071,-420.32,0.00010958,2]
[361018423,1747206644081,-400.0,0.00010958,2]
[361018424,1747206644090,-495.44330368,0.00010958,2]
[361018425,1747206644100,-400.0,0.00010958,2]
[361018426,1747206644109,-400.0,0.00010958,2]
[361018427,1747206644119,-823.04,0.00010958,2]
[361018428,1747206644129,-500.0,0.00010958,2]
[361018429,1747206644139,-400.0,0.00010958,2]
[361018430,1747206644148,-400.0,0.00010958,2]
[361018431,1747206644158,-400.0,0.00010958,2]
[361018432,1747206644168,-400.0,0.00010958,2]
[361018433,1747206644179,-400.0,0.00010958,2]
[361018434,1747206644188,-400.0,0.00010958,2]
[361018435,1747206644198,-400.0,0.00010958,2]
[361018436,1747206644207,-659.45,0.00010958,2]
[361018437,1747206644217,-406.32702658,0.00010958,2]
[361018438,1747206644227,-606.33,0.00010958,2]
[361018439,1747206644237,-717.5,0.00010958,2]
[361018440,1747206644246,-400.0,0.00010958,2]
[361018441,1747206644258,-297.52670311,0.00010958,2]
[361018442,1747206644268,-400.0,0.00010958,2]
[361018443,1747206644277,-714.75,0.00010958,2]
[361018444,1747206644287,-400.0,0.00010958,2]
[361018445,1747206644296,-300.0,0.00010958,2]
[361018446,1747206644306,-376.54218841,0.00010958,2]
[361018447,1747206644315,-462.06,0.00010958,2]
[361018448,1747206644326,-216.28568925,0.00010958,2]
[361018449,1747206644336,-400.0,0.00010958,2]
[361018450,1747206644347,-1347.57,0.00010958,2]
[361018451,1747206644356,-400.0,0.00010958,2]
[361018452,1747206644366,-297.00430716,0.00010958,2]
[361018453,1747206644375,-422.76,0.00010958,2]
[361018454,1747206644385,-400.0,0.00010958,2]
[361018455,1747206644395,-400.0,0.00010958,2]
[361018456,1747206644405,-190.92540652,0.00010958,2]
[361018457,1747206644415,-400.0,0.00010958,2]
[361018458,1747206644425,-441.49,0.00010958,2]
[361018459,1747206644435,-400.0,0.00010958,2]
[361018460,1747206644445,-645.71,0.00010958,2]
[361018461,1747206644455,-745.42,0.00010958,2]
[361018462,1747206644464,-400.0,0.00010958,2]
[361018463,1747206644474,-969.06,0.00010958,2]
[361018464,1747206644483,-739.53,0.00010958,2]
[361018465,1747206644493,-400.0,0.00010958,2]
[361018466,1747206644502,-405.23112452,0.00010958,2]
[361018467,1747206644512,-400.0,0.00010958,2]
[361018468,1747206644522,-1417.56,0.00010958,2]
[361018469,1747206644531,-400.0,0.00010958,2]
[361018470,1747206644541,-3382.12,0.00010958,2]
[361018471,1747206644551,-442.34593965,0.00010958,2]
[361018472,1747206644561,-400.0,0.00010958,2]
[361018473,1747206644571,-400.0,0.00010958,2]
[361018474,1747206644580,-476.29,0.00010958,2]
[361018475,1747206644590,-400.0,0.00010958,2]
[361018476,1747206644600,-532.02447264,0.00010958,2]
[361018477,1747206644610,-905.18,0.00010958,2]
[361018478,1747206644620,-494.2,0.00010958,2]
[361018479,1747206644630,-400.0,0.00010958,2]
[361018480,1747206644640,-730.63,0.00010958,2]
[361018481,1747206644649,-400.0,0.00010958,2]
[361018482,1747206644659,-424.27217099,0.00010958,2]
[361018483,1747206644670,-400.0,0.00010958,2]
[361018484,1747206644679,-400.0,0.00010958,2]
[361018485,1747206644689,-400.0,0.00010958,2]
[361018486,1747206644699,-213.36705417,0.00010958,2]
[361018487,1747206644709,-530.57,0.00010958,2]
[361018488,1747206644719,-758.37,0.00010958,2]
[361018489,1747206644728,-1295.55,0.00010958,2]
[361018490,1747206644739,-232.14571953,0.00010958,2]
[361018491,1747206644748,-1266.69,0.00010958,2]
[361018492,1747206644758,-400.0,0.00010958,2]
[361018493,1747206644767,-621.19,0.00010958,2]
[361018494,1747206644776,-784.77,0.00010958,2]
[361018495,1747206644786,-400.0,0.00010958,2]
[361018496,1747206644796,-327.99637977,0.00010958,2]
[361018497,1747206644805,-603.14,0.00010958,2]
[361018498,1747206644815,-400.0,0.00010958,2]
[361018499,1747206644825,-437.16654255,0.00010958,2]
[361018500,1747206644835,-400.0,0.00010958,2]
[361018501,1747206644845,-2380.46,0.00010958,2]
[361018502,1747206644855,-407.32,0.00010958,2]
[361018503,1747206644865,-400.0,0.00010958,2]
[361018504,1747206644874,-400.0,0.00010958,2]
[361018505,1747206644884,-400.0,0.00010958,2]
[361018506,1747206644894,-400.0,0.00010958,2]
[361018507,1747206644905,-400.0,0.00010958,2]
[361018508,1747206644915,-462.42,0.00010958,2]
[361018509,1747206644924,-400.0,0.00010958,2]
[361018510,1747206644934,-689.84,0.00010958,2]
[361018511,1747206644943,-400.0,0.00010958,2]
[361018512,1747206644954,-400.0,0.00010958,2]
[361018513,1747206644963,-4405.27,0.00010958,2]
[361018514,1747206644973,-400.0,0.00010958,2]
[361018515,1747206644983,-400.0,0.00010958,2]
[361018516,1747206644993,-258.12566055,0.00010958,2]
[361018517,1747206645003,-1115.59,0.00010958,2]
[361018518,1747206645013,-429.19,0.00010958,2]
[361018519,1747206645022,-336.92384514,0.00010958,2]
[361018520,1747206645034,-1025.26,0.00010958,2]
[361018521,1747206645044,-400.0,0.00010958,2]
[361018522,1747206645054,-400.0,0.00010958,2]
[361018523,1747206645064,-400.0,0.00010958,2]
[361018524,1747206645074,-400.0,0.00010958,2]
[361018525,1747206645083,-400.0,0.00010958,2]
[361018526,1747206645093,-406.15183363,0.00010958,2]
[361018527,1747206645103,-737.55,0.00010958,2]
[361018528,1747206645112,-481.79,0.00010958,2]
[361018529,1747206645123,-489.93,0.00010958,2]
[361018530,1747206645132,-458.70473048,0.00010958,2]
[361018531,1747206645143,-400.0,0.00010958,2]
[361018532,1747206645152,-400.0,0.00010958,2]
[361018533,1747206645163,-400.0,0.00010958,2]
[361018534,1747206645175,-2042.03982629,0.00010958,2]
[361018535,1747206645184,-400.0,0.00010958,2]
[361018536,1747206645194,-854.76,0.00010958,2]
[361018537,1747206645204,-426.26,0.00010958,2]
[361018538,1747206645214,-400.0,0.00010958,2]
[361018539,1747206645223,-546.36,0.00010958,2]
[361018540,1747206645232,-400.0,0.00010958,2]
[361018541,1747206645242,-400.0,0.00010958,2]
[361018542,1747206645252,-405.09,0.00010958,2]
[361018543,1747206645265,-400.0,0.00010958,2]
[361018544,1747206645276,-400.0,0.00010958,2]
[361018545,1747206645286,-400.0,0.00010958,2]
[361018546,1747206645295,-414.32,0.00010958,2]
[361018547,1747206645307,-400.0,0.00010958,2]
[361018548,1747206645317,-400.0,0.00010958,2]
[361018549,1747206645327,-400.0,0.00010958,2]
[361018550,1747206645336,-400.0,0.00010958,2]
[361018551,1747206645345,-259.0160646,0.00010958,2]
[361018552,1747206645355,-400.0,0.00010958,2]
[361018553,1747206645367,-400.0,0.00010958,2]
[361018554,1747206645376,-400.0,0.00010958,2]
[361018555,1747206645386,-400.0,0.00010958,2]
[361018556,1747206645396,-505.39847354,0.00010958,2]
[361018557,1747206645405,-400.0,0.00010958,2]
[361018558,1747206645414,-414.71,0.00010958,2]
[361018559,1747206645424,-400.0,0.00010958,2]
[361018560,1747206645434,-400.0,0.00010958,2]
[361018561,1747206645443,-400.0,0.00010958,2]
[361018562,1747206645453,-512.14263958,0.00010958,2]
[361018563,1747206645462,-340.40596937,0.00010958,2]
[361018564,1747206645472,-418.28,0.00010958,2]
[361018565,1747206645482,-400.0,0.00010958,2]
[361018567,1747206645492,-875.11,0.00010958,2]
[361018569,1747206645502,-400.0,0.00010958,2]
[361018571,1747206645511,-400.0,0.00010958,2]
[361018573,1747206645520,-400.0,0.00010958,2]
[361018574,1747206645529,-400.0,0.00010958,2]
[361018575,1747206645539,-406.44358402,0.00010958,2]
[361018576,1747206645548,-400.0,0.00010958,2]
[361018577,1747206645557,-400.0,0.00010958,2]
[361018578,1747206645567,-400.0,0.00010958,2]
[361018579,1747206645577,-428.81,0.00010958,2]
[361018580,1747206645587,-583.19,0.00010958,2]
[361018581,1747206645598,-400.0,0.00010958,2]
[361018582,1747206645610,-165.43502212,0.00010958,2]
[361018583,1747206645619,-1008.4,0.00010958,2]
[361018584,1747206645628,-400.0,0.00010958,2]
[361018585,1747206645638,-400.0,0.00010958,2]
[361018586,1747206645647,-1406.85,0.00010958,2]
[361018587,1747206645656,-400.0,0.00010958,2]
[361018588,1747206645666,-400.0,0.00010958,2]
[361018589,1747206645675,-400.0,0.00010958,2]
[361018590,1747206645684,-643.55,0.00010958,2]
[361018591,1747206645693,-646.08,0.00010958,2]
[361018592,1747206645703,-515.97444105,0.00010958,2]
[361018593,1747206645712,-400.0,0.00010958,2]
[361018594,1747206645722,-331.44960495,0.00010958,2]
[361018595,1747206645731,-400.0,0.00010958,2]
[361018596,1747206645741,-421.39,0.00010958,2]
[361018597,1747206645750,-400.0,0.00010958,2]
[361018598,1747206645759,-400.0,0.00010958,2]
[361018599,1747206645769,-400.0,0.00010958,2]
[361018600,1747206645778,-400.0,0.00010958,2]
[361018601,1747206645789,-2791.29,0.00010958,2]
[361018602,1747206645798,-400.0,0.00010958,2]
[361018603,1747206645808,-400.0,0.00010958,2]
[361018604,1747206645817,-400.0,0.00010958,2]
[361018605,1747206645827,-1587.96,0.00010958,2]
[361018606,1747206645836,-400.0,0.00010958,2]
[361018607,1747206645846,-500.0,0.00010958,2]
[361018608,1747206645856,-500.0,0.00010958,2]
[361018609,1747206645866,-400.0,0.00010958,2]
[361018610,1747206645876,-400.0,0.00010958,2]
[361018611,1747206645885,-400.0,0.00010958,2]
[361018612,1747206645896,-400.0,0.00010958,2]
[361018613,1747206645907,-400.0,0.00010958,2]
[361018614,1747206645916,-1061.47,0.00010958,2]
[361018615,1747206645927,-400.0,0.00010958,2]
[361018616,1747206645937,-596.73,0.00010958,2]
[361018617,1747206645946,-1156.0,0.00010958,2]
[361018618,1747206645956,-1381.79,0.00010958,2]
[361018619,1747206645966,-400.0,0.00010958,2]
[361018620,1747206645975,-400.0,0.00010958,2]
[361018621,1747206645985,-400.0,0.00010958,2]
[361018622,1747206645996,-400.0,0.00010958,2]
[361018623,1747206646007,-400.0,0.00010958,2]
[361018624,1747206646017,-400.0,0.00010958,2]
[361018625,1747206646027,-400.0,0.00010958,2]
[361018626,1747206646037,-742.4,0.00010958,2]
[361018627,1747206646046,-400.0,0.00010958,2]
[361018628,1747206646056,-400.0,0.00010958,2]
[361018629,1747206646066,-3079.93,0.00010958,2]
[361018630,1747206646076,-400.0,0.00010958,2]
[361018631,1747206646086,-432.87,0.00010958,2]
[361018632,1747206646097,-400.0,0.00010958,2]
[361018633,1747206646106,-400.0,0.00010958,2]
[361018634,1747206646116,-500.0,0.00010958,2]
[361018635,1747206646129,-500.0,0.00010958,2]
[361018636,1747206646140,-400.0,0.00010958,2]
[361018637,1747206646152,-1187.75,0.00010958,2]
[361018638,1747206646163,-400.0,0.00010958,2]
[361018639,1747206646172,-664.45,0.00010958,2]
[361018640,1747206646182,-400.0,0.00010958,2]
[361018641,1747206646191,-400.0,0.00010958,2]
[361018642,1747206646201,-400.0,0.00010958,2]
[361018643,1747206646211,-400.0,0.00010958,2]
[361018644,1747206646221,-510.8,0.00010958,2]
[361018645,1747206646232,-784.08,0.00010958,2]
[361018646,1747206646241,-1143.22,0.00010958,2]
[361018647,1747206646251,-1392.97,0.00010958,2]
[361018648,1747206646266,-400.0,0.00010958,2]
[361018649,1747206646277,-400.0,0.00010958,2]
[361018650,1747206646288,-400.0,0.00010958,2]
[361018651,1747206646298,-400.0,0.00010958,2]
[361018652,1747206646308,-493.63,0.00010958,2]
[361018653,1747206646318,-400.0,0.00010958,2]
[361018654,1747206646327,-400.0,0.00010958,2]
[361018655,1747206646341,-1657.94,0.00010958,2]
[361018656,1747206646352,-752.99,0.00010958,2]
[361018657,1747206646361,-5186.22,0.00010958,2]
[361018658,1747206646371,-804.99,0.00010958,2]
[361018659,1747206646381,-400.0,0.00010958,2]
[361018660,1747206646391,-530.66,0.00010958,2]
[361018661,1747206646402,-400.0,0.00010958,2]
[361018662,1747206646412,-400.0,0.00010958,2]
[361018663,1747206646422,-400.0,0.00010958,2]
[361018664,1747206646432,-400.0,0.00010958,2]
[361018665,1747206646442,-517.39,0.00010958,2]
[361018666,1747206646451,-400.0,0.00010958,2]
[361018667,1747206646461,-400.0,0.00010958,2]
[361018668,1747206646471,-400.0,0.00010958,2]
[361018669,1747206646481,-400.0,0.00010958,2]
[361018670,1747206646490,-400.0,0.00010958,2]
[361018671,1747206646499,-400.0,0.00010958,2]
[361018672,1747206646509,-1194.64,0.00010958,2]
[361018673,1747206646520,-400.0,0.00010958,2]
[361018674,1747206646531,-876.54,0.00010958,2]
[361018675,1747206646541,-400.0,0.00010958,2]
[361018676,1747206646552,-400.0,0.00010958,2]
[361018677,1747206646562,-400.0,0.00010958,2]
[361018678,1747206646572,-400.0,0.00010958,2]
[361018679,1747206646582,-1000.0,0.00010958,2]
[361018680,1747206646592,-6912.7,0.00010958,2]
[361018681,1747206646602,-1000.0,0.00010958,2]
[361018682,1747206646612,-735.0,0.00010958,2]
[361018683,1747206646621,-400.0,0.00010958,2]
[361018684,1747206646631,-400.0,0.00010958,2]
[361018685,1747206646641,-400.0,0.00010958,2]
[361018686,1747206646652,-156.39016877,0.00010958,2]
[361018687,1747206646662,-400.0,0.00010958,2]
[361018688,1747206646671,-2578.29,0.00010958,2]
[361018689,1747206646682,-400.0,0.00010958,2]
[361018690,1747206646692,-400.0,0.00010958,2]
[361018691,1747206646702,-1005.65,0.00010958,2]
[361018692,1747206646712,-453.68,0.00010958,2]
[361018693,1747206646722,-400.0,0.00010958,2]
[361018694,1747206646732,-735.0,0.00010958,2]
[361018695,1747206646742,-400.0,0.00010958,2]
[361018696,1747206646752,-400.0,0.00010958,2]
[361018697,1747206646762,-539.9,0.00010958,2]
[361018698,1747206646772,-400.0,0.00010958,2]
[361018699,1747206646782,-421.06,0.00010958,2]
[361018700,1747206646792,-400.0,0.00010958,2]
[361018701,1747206646802,-931.78,0.00010958,2]
[361018702,1747206646812,-400.0,0.00010958,2]
[361018703,1747206646822,-448.75,0.00010958,2]
[361018704,1747206646832,-1046.39,0.00010958,2]
[361018705,1747206646842,-546.83,0.00010958,2]
[361018706,1747206646853,-400.0,0.00010958,2]
[361018707,1747206646863,-400.0,0.00010958,2]
[361018708,1747206646873,-401.85279123,0.00010958,2]
[361018709,1747206646883,-3025.22,0.00010958,2]
[361018710,1747206646894,-403.75,0.00010958,2]
[361018711,1747206646904,-400.0,0.00010958,2]
[361018712,1747206646914,-400.0,0.00010958,2]
[361018713,1747206646924,-400.0,0.00010958,2]
[361018714,1747206646934,-849.98,0.00010958,2]
[361018715,1747206646944,-400.0,0.00010958,2]
[361018716,1747206646954,-1803.74,0.00010958,2]
[361018717,1747206646965,-692.61,0.00010958,2]
[361018718,1747206646975,-400.0,0.00010958,2]
[361018719,1747206646984,-400.0,0.00010958,2]
[361018720,1747206646994,-8013.87,0.00010958,2]
[361018721,1747206647004,-400.0,0.00010958,2]
[361018722,1747206647014,-400.0,0.00010958,2]
[361018723,1747206647025,-400.0,0.00010958,2]
[361018724,1747206647035,-400.0,0.00010958,2]
[361018725,1747206647045,-400.0,0.00010958,2]
[361018726,1747206647054,-400.0,0.00010958,2]
[361018727,1747206647065,-898.82,0.00010958,2]
[361018728,1747206647075,-1494.8,0.00010958,2]
[361018729,1747206647085,-400.0,0.00010958,2]
[361018730,1747206647095,-400.0,0.00010958,2]
[361018731,1747206647104,-853.96,0.00010958,2]
[361018732,1747206647114,-400.0,0.00010958,2]
[361018733,1747206647124,-594.76,0.00010958,2]
[361018734,1747206647134,-513.18,0.00010958,2]
[361018735,1747206647144,-5859.25,0.00010958,2]
[361018736,1747206647154,-187.16179292,0.00010958,2]
[361018737,1747206647164,-400.0,0.00010958,2]
[361018738,1747206647173,-400.0,0.00010958,2]
[361018739,1747206647183,-400.0,0.00010958,2]
[361018740,1747206647193,-246.09529818,0.00010958,2]
[361018741,1747206647203,-400.0,0.00010958,2]
[361018742,1747206647214,-696.11,0.00010958,2]
[361018743,1747206647224,-400.0,0.00010958,2]
[361018744,1747206647234,-522.8,0.00010958,2]
[361018745,1747206647244,-400.0,0.00010958,2]
[361018746,1747206647255,-3571.74,0.00010958,2]
[361018747,1747206647268,-400.0,0.00010958,2]
[361018748,1747206647277,-400.0,0.00010958,2]
[361018749,1747206647287,-1327.64,0.00010958,2]
[361018750,1747206647296,-258.40400421,0.00010958,2]
[361018751,1747206647307,-400.0,0.00010958,2]
[361018752,1747206647316,-400.0,0.00010958,2]
[361018753,1747206647326,-1151.65,0.00010958,2]
[361018754,1747206647335,-400.0,0.00010958,2]
[361018755,1747206647345,-400.0,0.00010958,2]
[361018756,1747206647354,-400.0,0.00010958,2]
[361018757,1747206647363,-400.0,0.00010958,2]
[361018758,1747206647373,-409.57187054,0.00010958,2]
[361018759,1747206647382,-4885.58,0.00010958,2]
[361018760,1747206647391,-400.0,0.00010958,2]
[361018761,1747206647401,-400.0,0.00010958,2]
[361018762,1747206647410,-712.79,0.00010958,2]
[361018763,1747206647420,-1150.89,0.00010958,2]
[361018764,1747206647430,-1020.92,0.00010958,2]
[361018765,1747206647439,-400.0,0.00010958,2]
[361018766,1747206647449,-400.0,0.00010958,2]
[361018767,1747206647458,-400.0,0.00010958,2]
[361018768,1747206647468,-400.0,0.00010958,2]
[361018769,1747206647478,-480.74,0.00010958,2]
[361018770,1747206647489,-1741.04,0.00010958,2]
[361018771,1747206647499,-400.0,0.00010958,2]
[361018772,1747206647510,-400.0,0.00010958,2]
[361018773,1747206647521,-551.64,0.00010958,2]
[361018774,1747206647530,-400.0,0.00010958,2]
[361018775,1747206647540,-9487.06,0.00010958,2]
[361018776,1747206647551,-526.9,0.00010958,2]
[361018777,1747206647563,-400.0,0.00010958,2]
[361018778,1747206647574,-506.81270914,0.00010958,2]
[361018779,1747206647584,-687.0,0.00010958,2]
[361018780,1747206647596,-400.0,0.00010958,2]
[361018781,1747206647607,-400.0,0.00010958,2]
[361018782,1747206647616,-400.0,0.00010958,2]
[361018783,1747206647625,-1069.78,0.00010958,2]
[361018784,1747206647634,-430.52,0.00010958,2]
[361018785,1747206647643,-400.0,0.00010958,2]
[361018786,1747206647652,-400.0,0.00010958,2]
[361018787,1747206647661,-400.0,0.00010958,2]
[361018788,1747206647670,-400.0,0.00010958,2]
[361018789,1747206647679,-400.0,0.00010958,2]
[361018790,1747206647688,-407.58,0.00010958,2]
[361018791,1747206647697,-400.0,0.00010958,2]
[361018792,1747206647706,-400.0,0.00010958,2]
[361018793,1747206647715,-1249.16,0.00010958,2]
[361018794,1747206647724,-705.33,0.00010958,2]
[361018795,1747206647733,-1047.53,0.00010958,2]
[361018796,1747206647742,-400.0,0.00010958,2]
[361018797,1747206647751,-1319.82,0.00010958,2]
[361018798,1747206647760,-400.0,0.00010958,2]
[361018799,1747206647770,-2095.29,0.00010958,2]
[361018800,1747206647779,-400.0,0.00010958,2]
[361018801,1747206647789,-400.0,0.00010958,2]
[361018802,1747206647801,-468.56,0.00010958,2]
[361018803,1747206647811,-400.0,0.00010958,2]
[361018804,1747206647821,-400.0,0.00010958,2]
[361018805,1747206647831,-400.0,0.00010958,2]
[361018806,1747206647841,-1428.57,0.00010958,2]
[361018807,1747206647851,-405.44853495,0.00010958,2]
[361018808,1747206647861,-636.96,0.00010958,2]
[361018809,1747206647871,-421.32872662,0.00010958,2]
[361018810,1747206647881,-400.0,0.00010958,2]
[361018811,1747206647890,-416.3,0.00010958,2]
[361018812,1747206647901,-1060.15,0.00010958,2]
[361018813,1747206647911,-400.0,0.00010958,2]
[361018814,1747206647921,-709.99,0.00010958,2]
[361018815,1747206647932,-1127.51,0.00010958,2]
[361018816,1747206648159,-400.0,0.00010958,2]
[361018817,1747206648170,-737.32,0.00010958,2]
[361018818,1747206648180,-406.57608926,0.00010958,2]
[361018819,1747206648190,-400.0,0.00010958,2]
[361018820,1747206648200,-1551.6,0.00010958,2]
[361018821,1747206648210,-400.0,0.00010958,2]
[361018822,1747206648220,-10260.55,0.00010958,2]
[361018823,1747206648230,-400.0,0.00010958,2]
[361018824,1747206648240,-715.04,0.00010958,2]
[361018825,1747206648250,-400.0,0.00010958,2]
[361018826,1747206648266,-1225.02,0.00010958,2]
[361018827,1747206648276,-4827.08,0.00010958,2]
[361018828,1747206648286,-400.0,0.00010958,2]
[361018829,1747206648295,-413.07,0.00010958,2]
[361018830,1747206648306,-400.0,0.00010958,2]
[361018831,1747206648317,-400.0,0.00010958,2]
[361018832,1747206648327,-400.0,0.00010958,2]
[361018833,1747206648337,-1124.78,0.00010958,2]
[361018834,1747206648347,-400.0,0.00010958,2]
[361018835,1747206648357,-400.0,0.00010958,2]
[361018836,1747206648366,-400.0,0.00010958,2]
[361018837,1747206648376,-400.0,0.00010958,2]
[361018838,1747206648386,-400.0,0.00010958,2]
[361018839,1747206648396,-1126.87,0.00010958,2]
[361018840,1747206648406,-1470.88,0.00010958,2]
[361018841,1747206648416,-1612.02,0.00010958,2]
[361018842,1747206648427,-400.0,0.00010958,2]
[361018843,1747206648438,-456.75,0.00010958,2]
[361018844,1747206648449,-400.0,0.00010958,2]
[361018845,1747206648459,-400.0,0.00010958,2]
[361018846,1747206648468,-400.0,0.00010958,2]
[361018847,1747206648478,-400.0,0.00010958,2]
[361018848,1747206648488,-400.0,0.00010958,2]
[361018849,1747206648497,-400.0,0.00010958,2]
[361018850,1747206648507,-400.0,0.00010958,2]
[361018851,1747206648516,-2756.49,0.00010958,2]
[361018852,1747206648526,-400.0,0.00010958,2]
[361018853,1747206648536,-400.0,0.00010958,2]
[361018854,1747206648546,-400.0,0.00010958,2]
[361018855,1747206648555,-400.0,0.00010958,2]
[361018856,1747206648565,-3363.5,0.00010958,2]
[361018857,1747206648575,-439.11,0.00010958,2]
[361018858,1747206648585,-494.99,0.00010958,2]
[361018859,1747206648595,-400.0,0.00010958,2]
[361018860,1747206648604,-400.0,0.00010958,2]
[361018861,1747206648614,-4234.3,0.00010958,2]
[361018862,1747206648623,-400.0,0.00010958,2]
[361018863,1747206648633,-1431.45,0.00010958,2]
[361018864,1747206648643,-439.95,0.00010958,2]
[361018865,1747206648652,-400.0,0.00010958,2]
[361018866,1747206648662,-1402.78,0.00010958,2]
[361018867,1747206648672,-2162.91,0.00010958,2]
[361018868,1747206648681,-401.48218611,0.00010958,2]